[Event "*** Titled Tuesday Blitz"]
[Site "Chess.com"]
[Date "2020.05.05"]
[Round "4"]
[White "Khamrakulov_Djurabek"]
[Black "Kimster98"]
[Result "1-0"]
[WhiteElo "2817"]
[BlackElo "2528"]
[TimeControl "180+1"]
[EndTime "10:40:47 PDT"]
[Termination "Khamrakulov_Djurabek won by resignation"]

1. e4 {[%clk 0:03:00.9]} 1... c5 {[%clk 0:02:56.8]} 2. c3 {[%clk 0:03:01]} 2...
Nf6 {[%clk 0:02:47.6]} 3. e5 {[%clk 0:03:00.9]} 3... Nd5 {[%clk 0:02:48.2]} 4.
d4 {[%clk 0:03:01.3]} 4... cxd4 {[%clk 0:02:46.8]} 5. Nf3 {[%clk 0:03:01.6]}
5... Nc6 {[%clk 0:02:46.1]} 6. cxd4 {[%clk 0:03:02.1]} 6... d6 {[%clk
0:02:45.9]} 7. Bc4 {[%clk 0:03:02.1]} 7... Nb6 {[%clk 0:02:45.4]} 8. Bb5 {[%clk
0:03:02]} 8... dxe5 {[%clk 0:02:45.4]} 9. Nxe5 {[%clk 0:03:02]} 9... Bd7 {[%clk
0:02:45.8]} 10. Nxd7 {[%clk 0:03:02.2]} 10... Qxd7 {[%clk 0:02:46.7]} 11. Nc3
{[%clk 0:03:02.3]} 11... a6 {[%clk 0:02:42.8]} 12. Bxc6 {[%clk 0:02:54.4]} 12...
Qxc6 {[%clk 0:02:43.7]} 13. d5 {[%clk 0:02:45.8]} 13... Qd7 {[%clk 0:02:38.4]}
14. Qb3 {[%clk 0:02:42]} 14... Nc8 {[%clk 0:02:35.1]} 15. O-O {[%clk 0:02:40.1]}
15... g6 {[%clk 0:02:31.3]} 16. Ne4 {[%clk 0:02:39]} 16... Bg7 {[%clk
0:02:25.9]} 17. Nc5 {[%clk 0:02:38.5]} 17... Qc7 {[%clk 0:02:25.1]} 18. Qxb7
{[%clk 0:02:19.6]} 18... Qxb7 {[%clk 0:02:22.3]} 19. Nxb7 {[%clk 0:02:19.5]}
19... Rb8 {[%clk 0:02:21.4]} 20. Nc5 {[%clk 0:02:19.2]} 20... Bxb2 {[%clk
0:02:20.6]} 21. Rb1 {[%clk 0:02:15.9]} 21... Be5 {[%clk 0:02:18.7]} 22. Rxb8
{[%clk 0:02:13]} 22... Bxb8 {[%clk 0:02:19.6]} 23. Bb2 {[%clk 0:02:10.2]} 23...
Rg8 {[%clk 0:02:03.5]} 24. Nxa6 {[%clk 0:02:09.5]} 24... Bd6 {[%clk 0:02:03.4]}
25. Bd4 {[%clk 0:02:03.8]} 25... e6 {[%clk 0:01:57.2]} 26. dxe6 {[%clk
0:01:58.4]} 26... fxe6 {[%clk 0:01:58.1]} 27. Nc5 {[%clk 0:01:55.4]} 27... e5
{[%clk 0:01:52.3]} 28. Be3 {[%clk 0:01:47.2]} 28... Rg7 {[%clk 0:01:36.3]} 29.
a4 {[%clk 0:01:42.1]} 29... Rc7 {[%clk 0:01:32.7]} 30. Ne4 {[%clk 0:01:40]}
30... Rc4 {[%clk 0:01:26.5]} 31. Nxd6+ {[%clk 0:01:27]} 31... Nxd6 {[%clk
0:01:27.4]} 32. Ra1 {[%clk 0:01:26.3]} 32... Rc6 {[%clk 0:01:11.4]} 33. g3
{[%clk 0:01:24.1]} 33... Kd7 {[%clk 0:01:06]} 34. Kg2 {[%clk 0:01:23.9]} 34...
Ke6 {[%clk 0:01:02]} 35. Kf3 {[%clk 0:01:19.5]} 35... Ra6 {[%clk 0:00:57.7]} 36.
Ke2 {[%clk 0:01:17.9]} 36... Kd5 {[%clk 0:00:55]} 37. Kd3 {[%clk 0:01:14]} 37...
Nc4 {[%clk 0:00:54.8]} 38. Kc3 {[%clk 0:01:09.4]} 38... Rc6 {[%clk 0:00:36.4]}
39. Kb4 {[%clk 0:01:05.7]} 39... Nxe3 {[%clk 0:00:15.7]} 40. fxe3 {[%clk
0:01:04.9]} 40... Ke4 {[%clk 0:00:16.3]} 41. Ra3 {[%clk 0:01:04]} 41... Kf3
{[%clk 0:00:14.7]} 42. a5 {[%clk 0:01:03.7]} 42... Rc8 {[%clk 0:00:14.4]} 43. a6
{[%clk 0:01:03.6]} 43... Kg2 {[%clk 0:00:13.4]} 44. a7 {[%clk 0:01:03.3]} 44...
Ra8 {[%clk 0:00:11]} 45. e4 {[%clk 0:01:01.9]} 45... Kxh2 {[%clk 0:00:11]} 46.
Kc5 {[%clk 0:01:02.5]} 46... h5 {[%clk 0:00:05]} 47. Kd5 {[%clk 0:01:02.5]}
47... g5 {[%clk 0:00:04.6]} 48. Kxe5 {[%clk 0:01:02.5]} 48... h4 {[%clk
0:00:05.2]} 49. gxh4 {[%clk 0:00:48.7]} 49... gxh4 {[%clk 0:00:06.1]} 50. Kd6
{[%clk 0:00:46.3]} 50... h3 {[%clk 0:00:04.5]} 51. Kc6 {[%clk 0:00:46.4]} 51...
Kg2 {[%clk 0:00:04.6]} 52. Kb7 {[%clk 0:00:46.3]} 52... Rxa7+ {[%clk 0:00:01.5]}
53. Rxa7 {[%clk 0:00:43.9]} 53... h2 {[%clk 0:00:02.4]} 54. Ra2+ {[%clk
0:00:43.7]} 1-0

[Event "*** Titled Tuesday Blitz"]
[Site "Chess.com"]
[Date "2020.05.05"]
[Round "4"]
[White "GelmanAlexander"]
[Black "Semen16"]
[Result "1-0"]
[WhiteElo "2522"]
[BlackElo "2314"]
[TimeControl "180+1"]
[EndTime "10:40:48 PDT"]
[Termination "GelmanAlexander won by checkmate"]

1. c4 {[%clk 0:03:00.9]} 1... e5 {[%clk 0:02:59.6]} 2. e3 {[%clk 0:03:00.9]}
2... Nf6 {[%clk 0:02:58.4]} 3. a3 {[%clk 0:03:01]} 3... a5 {[%clk 0:02:55.6]} 4.
d3 {[%clk 0:03:00]} 4... Nc6 {[%clk 0:02:53.6]} 5. Nc3 {[%clk 0:02:59.5]} 5...
d6 {[%clk 0:02:51.6]} 6. Nf3 {[%clk 0:02:59.3]} 6... Be7 {[%clk 0:02:51]} 7. Be2
{[%clk 0:02:57.2]} 7... O-O {[%clk 0:02:50.9]} 8. O-O {[%clk 0:02:57.7]} 8... h6
{[%clk 0:02:49.7]} 9. Rb1 {[%clk 0:02:57]} 9... Bf5 {[%clk 0:02:43.5]} 10. Nd2
{[%clk 0:02:55.8]} 10... Bg6 {[%clk 0:02:38.7]} 11. b4 {[%clk 0:02:55.7]} 11...
axb4 {[%clk 0:02:38]} 12. axb4 {[%clk 0:02:56.6]} 12... d5 {[%clk 0:02:34.9]}
13. cxd5 {[%clk 0:02:19.3]} 13... Nxd5 {[%clk 0:02:33]} 14. Nxd5 {[%clk
0:02:17.4]} 14... Qxd5 {[%clk 0:02:31.6]} 15. b5 {[%clk 0:02:16.3]} 15... Nb4
{[%clk 0:02:16]} 16. e4 {[%clk 0:02:16.6]} 16... Qxb5 {[%clk 0:02:14]} 17. Nf3
{[%clk 0:01:38.1]} 17... Qa5 {[%clk 0:01:54.7]} 18. Bd2 {[%clk 0:01:33.4]} 18...
Rfd8 {[%clk 0:01:47.7]} 19. Qb3 {[%clk 0:01:31.4]} 19... c5 {[%clk 0:01:29.3]}
20. Nxe5 {[%clk 0:01:29.2]} 20... Kh7 {[%clk 0:01:28.9]} 21. Nxf7 {[%clk
0:01:03.6]} 21... Bxf7 {[%clk 0:01:21]} 22. Qxf7 {[%clk 0:01:03]} 22... Qc7
{[%clk 0:01:20.6]} 23. Bg4 {[%clk 0:00:36.4]} 23... Qd6 {[%clk 0:01:02.6]} 24.
Bf5+ {[%clk 0:00:34.1]} 24... Kh8 {[%clk 0:01:02.4]} 25. e5 {[%clk 0:00:20.4]}
25... Qxe5 {[%clk 0:00:38.9]} 26. Qg6 {[%clk 0:00:16.9]} 26... Kg8 {[%clk
0:00:37.2]} 27. Be6+ {[%clk 0:00:16.8]} 27... Kh8 {[%clk 0:00:36.4]} 28. Bf5
{[%clk 0:00:17]} 28... Kg8 {[%clk 0:00:36.2]} 29. Rfe1 {[%clk 0:00:17.4]} 29...
Qf6 {[%clk 0:00:36.1]} 30. Qh7+ {[%clk 0:00:17.5]} 30... Kf8 {[%clk 0:00:36.1]}
31. Re6 {[%clk 0:00:16.7]} 31... Qf7 {[%clk 0:00:34.4]} 32. Rxh6 {[%clk
0:00:15]} 32... Bf6 {[%clk 0:00:26.8]} 33. Rg6 {[%clk 0:00:11.8]} 33... Nxd3
{[%clk 0:00:22.4]} 34. Bg5 {[%clk 0:00:08.2]} 34... Bxg5 {[%clk 0:00:16.9]} 35.
Rxg5 {[%clk 0:00:09.1]} 35... Nf4 {[%clk 0:00:17]} 36. Bc2 {[%clk 0:00:06.7]}
36... Ne2+ {[%clk 0:00:16.4]} 37. Kh1 {[%clk 0:00:06.6]} 37... Qxf2 {[%clk
0:00:16]} 38. Rf5+ {[%clk 0:00:06.4]} 38... Qxf5 {[%clk 0:00:15.2]} 39. Qxf5+
{[%clk 0:00:07.3]} 39... Kg8 {[%clk 0:00:15.9]} 40. Bb3+ {[%clk 0:00:07.3]}
40... Kh8 {[%clk 0:00:14.8]} 41. Qh5# {[%clk 0:00:07.4]} 1-0

[Event "*** Titled Tuesday Blitz"]
[Site "Chess.com"]
[Date "2020.05.05"]
[Round "4"]
[White "WIDBIFS"]
[Black "r31415"]
[Result "0-1"]
[WhiteElo "2774"]
[BlackElo "2415"]
[TimeControl "180+1"]
[EndTime "10:40:52 PDT"]
[Termination "r31415 won on time"]

1. d4 {[%clk 0:03:00.9]} 1... d6 {[%clk 0:03:00.2]} 2. Nf3 {[%clk 0:03:01.3]}
2... g6 {[%clk 0:03:00.1]} 3. h4 {[%clk 0:03:00]} 3... Bg4 {[%clk 0:02:51.4]} 4.
Nc3 {[%clk 0:02:54.5]} 4... Bg7 {[%clk 0:02:50.5]} 5. Bf4 {[%clk 0:02:51.1]}
5... Nd7 {[%clk 0:02:48.5]} 6. Qd2 {[%clk 0:02:50.8]} 6... c6 {[%clk 0:02:45.3]}
7. e3 {[%clk 0:02:37.8]} 7... Ngf6 {[%clk 0:02:37.5]} 8. Bc4 {[%clk 0:02:31.8]}
8... O-O {[%clk 0:02:35.9]} 9. a4 {[%clk 0:02:31.2]} 9... Qa5 {[%clk 0:02:33.5]}
10. Ne2 {[%clk 0:02:24.1]} 10... Qc7 {[%clk 0:02:29.5]} 11. Nh2 {[%clk
0:02:15.5]} 11... Bf5 {[%clk 0:02:15.6]} 12. Ng3 {[%clk 0:02:11.4]} 12... e5
{[%clk 0:01:58.2]} 13. Nxf5 {[%clk 0:02:11]} 13... exf4 {[%clk 0:01:51.9]} 14.
Qd3 {[%clk 0:01:39.9]} 14... gxf5 {[%clk 0:01:46.4]} 15. Qxf5 {[%clk 0:01:40.8]}
15... fxe3 {[%clk 0:01:22.8]} 16. O-O {[%clk 0:01:36.1]} 16... Rae8 {[%clk
0:01:09.8]} 17. fxe3 {[%clk 0:01:26.7]} 17... d5 {[%clk 0:01:03.6]} 18. Bd3
{[%clk 0:01:25.9]} 18... Rxe3 {[%clk 0:00:54.8]} 19. Ng4 {[%clk 0:01:15.5]}
19... Re6 {[%clk 0:00:49.9]} 20. h5 {[%clk 0:01:09.3]} 20... h6 {[%clk 0:00:49]}
21. Rf3 {[%clk 0:00:58.9]} 21... Rfe8 {[%clk 0:00:46.8]} 22. Raf1 {[%clk
0:00:58.3]} 22... Re1 {[%clk 0:00:44.1]} 23. c3 {[%clk 0:00:33.5]} 23... Rxf1+
{[%clk 0:00:44]} 24. Rxf1 {[%clk 0:00:34.4]} 24... Qg3 {[%clk 0:00:40.6]} 25.
Nf2 {[%clk 0:00:11.6]} 25... Qg5 {[%clk 0:00:30.4]} 26. Qxg5 {[%clk 0:00:07]}
26... hxg5 {[%clk 0:00:29.8]} 27. g4 {[%clk 0:00:07.6]} 27... Ne4 {[%clk
0:00:28]} 28. Nxe4 {[%clk 0:00:06.2]} 28... dxe4 {[%clk 0:00:28.9]} 29. Bc4
{[%clk 0:00:07.1]} 29... Nf6 {[%clk 0:00:29.2]} 30. Kg2 {[%clk 0:00:06.1]} 30...
Re7 {[%clk 0:00:28.4]} 31. Be2 {[%clk 0:00:05.9]} 31... Nd5 {[%clk 0:00:27.7]}
32. Kf2 {[%clk 0:00:02.7]} 32... Re6 {[%clk 0:00:20.5]} 33. Ke1 {[%clk
0:00:01.3]} 33... Bf8 {[%clk 0:00:19.9]} 34. Bc4 {[%clk 0:00:01.1]} 34... Bd6
{[%clk 0:00:19.2]} 35. Bxd5 {[%clk 0:00:01.3]} 35... cxd5 {[%clk 0:00:19.1]} 36.
Rf5 {[%clk 0:00:01.9]} 36... Bg3+ {[%clk 0:00:19.5]} 0-1

[Event "*** Titled Tuesday Blitz"]
[Site "Chess.com"]
[Date "2020.05.05"]
[Round "4"]
[White "Kate1606"]
[Black "HaryKane"]
[Result "0-1"]
[WhiteElo "2103"]
[BlackElo "2598"]
[TimeControl "180+1"]
[EndTime "10:40:52 PDT"]
[Termination "HaryKane won on time"]

1. e4 {[%clk 0:03:00.9]} 1... e6 {[%clk 0:03:00.6]} 2. d4 {[%clk 0:03:00.6]}
2... d5 {[%clk 0:03:01.1]} 3. Nc3 {[%clk 0:03:00.4]} 3... Nf6 {[%clk 0:03:01.1]}
4. Bg5 {[%clk 0:02:59.7]} 4... Be7 {[%clk 0:03:00.6]} 5. e5 {[%clk 0:03:00]}
5... Nfd7 {[%clk 0:03:00.2]} 6. Bxe7 {[%clk 0:03:00.8]} 6... Qxe7 {[%clk
0:03:01.1]} 7. f4 {[%clk 0:03:00]} 7... O-O {[%clk 0:03:01.5]} 8. Nf3 {[%clk
0:02:59.3]} 8... c5 {[%clk 0:03:02]} 9. dxc5 {[%clk 0:02:59.5]} 9... Qxc5 {[%clk
0:03:02.9]} 10. Qd2 {[%clk 0:02:59.5]} 10... Nc6 {[%clk 0:03:00.8]} 11. O-O-O
{[%clk 0:02:59.6]} 11... Nb6 {[%clk 0:03:01]} 12. Bd3 {[%clk 0:02:57.1]} 12...
a5 {[%clk 0:02:58.7]} 13. Kb1 {[%clk 0:02:49.1]} 13... Bd7 {[%clk 0:02:58.2]}
14. h4 {[%clk 0:02:43.1]} 14... Rfc8 {[%clk 0:02:57.4]} 15. Ng5 {[%clk
0:02:34.4]} 15... h6 {[%clk 0:02:55.3]} 16. Nf3 {[%clk 0:02:11.8]} 16... Nc4
{[%clk 0:02:46.1]} 17. Bxc4 {[%clk 0:02:06.4]} 17... Qxc4 {[%clk 0:02:47]} 18.
g4 {[%clk 0:01:59.9]} 18... b5 {[%clk 0:02:41.3]} 19. g5 {[%clk 0:01:58.3]}
19... h5 {[%clk 0:02:40.4]} 20. f5 {[%clk 0:01:53.5]} 20... b4 {[%clk
0:02:37.4]} 21. Na4 {[%clk 0:01:45.2]} 21... Rab8 {[%clk 0:02:24.9]} 22. b3
{[%clk 0:01:40.2]} 22... Qe4 {[%clk 0:02:18.3]} 23. Nc5 {[%clk 0:01:30]} 23...
Qxf3 {[%clk 0:02:18]} 24. Nxd7 {[%clk 0:01:29.9]} 24... Rb7 {[%clk 0:02:14.5]}
25. Nf6+ {[%clk 0:01:27.1]} 25... Kf8 {[%clk 0:01:54.5]} 26. g6 {[%clk
0:01:20.1]} 26... Nxe5 {[%clk 0:01:47.1]} 27. Rhf1 {[%clk 0:01:04.7]} 27... Qc3
{[%clk 0:01:37.4]} 28. Nh7+ {[%clk 0:01:01]} 28... Kg8 {[%clk 0:01:32.4]} 29.
gxf7+ {[%clk 0:00:46.7]} 29... Rxf7 {[%clk 0:01:24.8]} 30. Qxc3 {[%clk
0:00:37.5]} 30... bxc3 {[%clk 0:01:18.3]} 31. Ng5 {[%clk 0:00:25.3]} 31... Rxf5
{[%clk 0:01:14.2]} 32. Rxf5 {[%clk 0:00:21.6]} 32... exf5 {[%clk 0:01:15.1]} 33.
Rxd5 {[%clk 0:00:21.3]} 33... Ng6 {[%clk 0:01:15.2]} 34. Rxf5 {[%clk 0:00:18.9]}
34... Rf8 {[%clk 0:01:05.9]} 35. Rxf8+ {[%clk 0:00:17.8]} 35... Kxf8 {[%clk
0:01:06.8]} 36. Nf3 {[%clk 0:00:18.4]} 36... Ke7 {[%clk 0:01:05.1]} 37. a3
{[%clk 0:00:17.9]} 37... Kd6 {[%clk 0:01:05.1]} 38. Ka2 {[%clk 0:00:18.2]} 38...
Kd5 {[%clk 0:01:04.6]} 39. b4 {[%clk 0:00:17.5]} 39... axb4 {[%clk 0:01:02.3]}
40. axb4 {[%clk 0:00:17.3]} 40... Ke4 {[%clk 0:01:01.5]} 41. Ng5+ {[%clk
0:00:15.5]} 41... Kd5 {[%clk 0:00:57.6]} 42. Kb3 {[%clk 0:00:15]} 42... Nxh4
{[%clk 0:00:57.3]} 43. Kxc3 {[%clk 0:00:14.1]} 43... Ng6 {[%clk 0:00:53.7]} 44.
Kb3 {[%clk 0:00:13.3]} 44... h4 {[%clk 0:00:51.7]} 45. c4+ {[%clk 0:00:14]}
45... Kc6 {[%clk 0:00:48.1]} 46. b5+ {[%clk 0:00:13]} 46... Kb7 {[%clk
0:00:43.8]} 47. c5 {[%clk 0:00:12.3]} 47... Nf4 {[%clk 0:00:44.4]} 48. Kc4
{[%clk 0:00:03.5]} 48... h3 {[%clk 0:00:44.5]} 49. c6+ {[%clk 0:00:02.4]} 49...
Kb6 {[%clk 0:00:43]} 50. Nf3 {[%clk 0:00:02.5]} 50... g5 {[%clk 0:00:39.7]} 0-1

[Event "*** Titled Tuesday Blitz"]
[Site "Chess.com"]
[Date "2020.05.05"]
[Round "4"]
[White "julinha97"]
[Black "Nafania1"]
[Result "0-1"]
[WhiteElo "2158"]
[BlackElo "2379"]
[TimeControl "180+1"]
[EndTime "10:40:53 PDT"]
[Termination "Nafania1 won on time"]

1. e4 {[%clk 0:03:00.9]} 1... e6 {[%clk 0:03:00.2]} 2. d4 {[%clk 0:02:58.4]}
2... d5 {[%clk 0:03:00.3]} 3. Bd3 {[%clk 0:02:58.5]} 3... dxe4 {[%clk 0:03:00]}
4. Bxe4 {[%clk 0:02:59.4]} 4... Nf6 {[%clk 0:03:00.4]} 5. Bf3 {[%clk 0:02:59.8]}
5... c5 {[%clk 0:03:00.2]} 6. Ne2 {[%clk 0:02:58.8]} 6... Nc6 {[%clk 0:03:00.1]}
7. Be3 {[%clk 0:02:56.8]} 7... cxd4 {[%clk 0:03:00.3]} 8. Nxd4 {[%clk
0:02:57.7]} 8... Ne5 {[%clk 0:03:00.5]} 9. O-O {[%clk 0:02:56.8]} 9... a6 {[%clk
0:02:55.9]} 10. Nc3 {[%clk 0:02:54.6]} 10... Bd6 {[%clk 0:02:48.6]} 11. h3
{[%clk 0:02:51.2]} 11... O-O {[%clk 0:02:47.7]} 12. Qe2 {[%clk 0:02:50.1]} 12...
Qc7 {[%clk 0:02:36.9]} 13. Rad1 {[%clk 0:02:43.8]} 13... Bd7 {[%clk 0:02:35.1]}
14. Ne4 {[%clk 0:02:36.2]} 14... Nxf3+ {[%clk 0:02:31.7]} 15. Qxf3 {[%clk
0:02:33.2]} 15... Nxe4 {[%clk 0:02:31.5]} 16. Qxe4 {[%clk 0:02:32.9]} 16... Rae8
{[%clk 0:01:59.5]} 17. c3 {[%clk 0:02:07.7]} 17... f5 {[%clk 0:01:38.4]} 18. Qd3
{[%clk 0:01:45.9]} 18... f4 {[%clk 0:01:30.4]} 19. Bc1 {[%clk 0:01:12.9]} 19...
e5 {[%clk 0:01:23.2]} 20. Nb3 {[%clk 0:01:06.9]} 20... Rf6 {[%clk 0:01:20.8]}
21. f3 {[%clk 0:00:56.3]} 21... Bb5 {[%clk 0:01:19]} 22. Qd5+ {[%clk 0:00:54.5]}
22... Kh8 {[%clk 0:01:17.7]} 23. Rf2 {[%clk 0:00:53.8]} 23... Bc4 {[%clk
0:01:14.2]} 24. Qd2 {[%clk 0:00:50]} 24... Bxb3 {[%clk 0:01:14.2]} 25. axb3
{[%clk 0:00:50.9]} 25... Bc5 {[%clk 0:01:14.6]} 26. b4 {[%clk 0:00:46.7]} 26...
Bxf2+ {[%clk 0:01:14.3]} 27. Qxf2 {[%clk 0:00:47.6]} 27... Rd6 {[%clk
0:01:11.8]} 28. Re1 {[%clk 0:00:47.7]} 28... Rd5 {[%clk 0:01:05.5]} 29. Qe2
{[%clk 0:00:43.3]} 29... Qf7 {[%clk 0:00:44.6]} 30. c4 {[%clk 0:00:40.6]} 30...
Rd4 {[%clk 0:00:42.3]} 31. b3 {[%clk 0:00:40.5]} 31... Qd7 {[%clk 0:00:35.9]}
32. Kh2 {[%clk 0:00:29.7]} 32... h6 {[%clk 0:00:36.2]} 33. Qc2 {[%clk
0:00:06.8]} 33... Kg8 {[%clk 0:00:32.9]} 34. Re2 {[%clk 0:00:06.6]} 34... Qf7
{[%clk 0:00:28.4]} 35. Bb2 {[%clk 0:00:06.1]} 35... Rd7 {[%clk 0:00:25.3]} 36.
c5 {[%clk 0:00:05.2]} 36... Rde7 {[%clk 0:00:23]} 37. Qc3 {[%clk 0:00:02.1]}
37... e4 {[%clk 0:00:20.6]} 38. fxe4 {[%clk 0:00:01.7]} 38... Rxe4 {[%clk
0:00:20.7]} 39. Rf2 {[%clk 0:00:02.2]} 39... h5 {[%clk 0:00:17.4]} 0-1

[Event "*** Titled Tuesday Blitz"]
[Site "Chess.com"]
[Date "2020.05.05"]
[Round "4"]
[White "OK97"]
[Black "blitzking1729"]
[Result "1-0"]
[WhiteElo "2719"]
[BlackElo "2489"]
[TimeControl "180+1"]
[EndTime "10:40:54 PDT"]
[Termination "OK97 won by resignation"]

1. e4 {[%clk 0:03:00.9]} 1... c6 {[%clk 0:02:59.2]} 2. d4 {[%clk 0:03:00.9]}
2... d5 {[%clk 0:02:59.2]} 3. e5 {[%clk 0:03:01.3]} 3... Bf5 {[%clk 0:02:58.9]}
4. h4 {[%clk 0:03:01.9]} 4... h6 {[%clk 0:02:58.8]} 5. g4 {[%clk 0:03:01.7]}
5... Be4 {[%clk 0:02:59]} 6. f3 {[%clk 0:03:00.7]} 6... Bh7 {[%clk 0:02:59]} 7.
e6 {[%clk 0:03:00.9]} 7... Qd6 {[%clk 0:02:59]} 8. exf7+ {[%clk 0:03:00.5]} 8...
Kxf7 {[%clk 0:02:59.9]} 9. f4 {[%clk 0:02:59.8]} 9... Nf6 {[%clk 0:02:56.9]} 10.
Nf3 {[%clk 0:02:53.4]} 10... Nxg4 {[%clk 0:02:56]} 11. h5 {[%clk 0:02:50.6]}
11... Nf6 {[%clk 0:02:29.4]} 12. Ne5+ {[%clk 0:02:49.2]} 12... Ke8 {[%clk
0:02:29.3]} 13. Bd3 {[%clk 0:02:42.8]} 13... Be4 {[%clk 0:02:26.8]} 14. Rg1
{[%clk 0:02:33.9]} 14... c5 {[%clk 0:02:15.1]} 15. Be3 {[%clk 0:02:04.6]} 15...
cxd4 {[%clk 0:02:12.4]} 16. Bxd4 {[%clk 0:02:04.6]} 16... Nc6 {[%clk 0:02:11.6]}
17. Bb5 {[%clk 0:01:58]} 17... a6 {[%clk 0:01:44.8]} 18. Bxc6+ {[%clk
0:01:53.3]} 18... bxc6 {[%clk 0:01:43.4]} 19. Nc3 {[%clk 0:01:39.1]} 19... c5
{[%clk 0:01:30.5]} 20. Bf2 {[%clk 0:01:38.2]} 20... Bf5 {[%clk 0:01:23.8]} 21.
Qe2 {[%clk 0:01:22.3]} 21... e6 {[%clk 0:01:20.8]} 22. O-O-O {[%clk 0:01:19.1]}
22... Rb8 {[%clk 0:00:56.5]} 23. Bh4 {[%clk 0:01:12.1]} 23... Qb6 {[%clk
0:00:52]} 24. b3 {[%clk 0:01:11.9]} 24... Qb4 {[%clk 0:00:50.3]} 25. Bxf6 {[%clk
0:00:38.4]} 25... Qxc3 {[%clk 0:00:34.4]} 26. Bxg7 {[%clk 0:00:12.8]} 26... Rg8
{[%clk 0:00:26.4]} 27. Bxf8 {[%clk 0:00:10.2]} 27... Qa1+ {[%clk 0:00:25.1]} 28.
Kd2 {[%clk 0:00:10.2]} 28... Qd4+ {[%clk 0:00:24.7]} 29. Nd3 {[%clk 0:00:09]}
29... Rxg1 {[%clk 0:00:23.9]} 30. Bxc5 {[%clk 0:00:08.5]} 30... Rxd1+ {[%clk
0:00:21.1]} 31. Qxd1 {[%clk 0:00:09.4]} 31... Qe4 {[%clk 0:00:18.5]} 32. Qg1
{[%clk 0:00:09.8]} 32... Kd7 {[%clk 0:00:12.5]} 33. Qg7+ {[%clk 0:00:08.8]}
33... Kc6 {[%clk 0:00:11.6]} 34. Bd4 {[%clk 0:00:06.1]} 34... Rb7 {[%clk
0:00:07.7]} 35. Ne5+ {[%clk 0:00:06.2]} 35... Kd6 {[%clk 0:00:06.2]} 36. Qf8+
{[%clk 0:00:05.7]} 36... Re7 {[%clk 0:00:04.9]} 37. Qd8+ {[%clk 0:00:05.7]} 1-0

[Event "*** Titled Tuesday Blitz"]
[Site "Chess.com"]
[Date "2020.05.05"]
[Round "4"]
[White "Oligan22"]
[Black "DenishevM"]
[Result "0-1"]
[WhiteElo "2355"]
[BlackElo "2595"]
[TimeControl "180+1"]
[EndTime "10:40:54 PDT"]
[Termination "DenishevM won by resignation"]

1. e4 {[%clk 0:03:00.9]} 1... c5 {[%clk 0:02:59.3]} 2. Nf3 {[%clk 0:03:00.6]}
2... d6 {[%clk 0:02:59.7]} 3. d4 {[%clk 0:03:00.5]} 3... cxd4 {[%clk 0:03:00.6]}
4. Nxd4 {[%clk 0:03:00.9]} 4... Nf6 {[%clk 0:03:01.2]} 5. Nc3 {[%clk 0:03:01.3]}
5... a6 {[%clk 0:03:01.8]} 6. Be3 {[%clk 0:03:01]} 6... e6 {[%clk 0:03:00.4]} 7.
Qd2 {[%clk 0:02:52.2]} 7... b5 {[%clk 0:02:59.1]} 8. f3 {[%clk 0:02:52.6]} 8...
Nbd7 {[%clk 0:02:58.8]} 9. g4 {[%clk 0:02:50.9]} 9... Nb6 {[%clk 0:02:58.8]} 10.
Bd3 {[%clk 0:02:34.6]} 10... Bb7 {[%clk 0:02:54.1]} 11. h4 {[%clk 0:02:25.3]}
11... Nfd7 {[%clk 0:02:54.2]} 12. O-O-O {[%clk 0:02:17.7]} 12... Rc8 {[%clk
0:02:51.9]} 13. Kb1 {[%clk 0:02:17.5]} 13... Ne5 {[%clk 0:02:51]} 14. Qf2 {[%clk
0:02:14.5]} 14... Rxc3 {[%clk 0:02:42.2]} 15. bxc3 {[%clk 0:02:05.3]} 15... Na4
{[%clk 0:02:41.1]} 16. Bd2 {[%clk 0:01:30.1]} 16... d5 {[%clk 0:02:24.6]} 17.
Nb3 {[%clk 0:01:19.1]} 17... Qc7 {[%clk 0:01:59.6]} 18. Qa7 {[%clk 0:00:53.1]}
18... Ba3 {[%clk 0:01:16.9]} 19. exd5 {[%clk 0:00:52.9]} 19... O-O {[%clk
0:00:46.3]} 20. Qd4 {[%clk 0:00:35.3]} 20... Bxd5 {[%clk 0:00:40.2]} 21. Rhf1
{[%clk 0:00:20.4]} 21... Nxf3 {[%clk 0:00:32.8]} 22. Rxf3 {[%clk 0:00:16.8]}
22... Bxf3 {[%clk 0:00:32.7]} 23. Rf1 {[%clk 0:00:17.4]} 23... Bd5 {[%clk
0:00:30.5]} 24. h5 {[%clk 0:00:17.4]} 24... Rc8 {[%clk 0:00:27]} 25. h6 {[%clk
0:00:17.3]} 25... Nxc3+ {[%clk 0:00:25.9]} 26. Ka1 {[%clk 0:00:17.4]} 26... f6
{[%clk 0:00:21]} 27. hxg7 {[%clk 0:00:17.7]} 27... e5 {[%clk 0:00:19.7]} 28. Qe3
{[%clk 0:00:15.2]} 28... Na4 {[%clk 0:00:14.2]} 29. Rxf6 {[%clk 0:00:14.6]}
29... Qxg7 {[%clk 0:00:07.5]} 30. Qxe5 {[%clk 0:00:12.9]} 30... Bb2+ {[%clk
0:00:07.2]} 31. Qxb2 {[%clk 0:00:13]} 31... Nxb2 {[%clk 0:00:08.1]} 32. g5
{[%clk 0:00:10]} 32... Nxd3 {[%clk 0:00:07.7]} 33. cxd3 {[%clk 0:00:10.9]} 33...
h6 {[%clk 0:00:05.6]} 34. Kb1 {[%clk 0:00:09.7]} 34... hxg5 {[%clk 0:00:05.6]}
35. Rd6 {[%clk 0:00:09.8]} 35... Bxb3 {[%clk 0:00:05.6]} 36. axb3 {[%clk
0:00:09.7]} 36... g4 {[%clk 0:00:06.1]} 37. Rd5 {[%clk 0:00:08.5]} 37... g3
{[%clk 0:00:05.8]} 38. Rg5 {[%clk 0:00:08.8]} 38... g2 {[%clk 0:00:05.7]} 39.
Rxg7+ {[%clk 0:00:08.2]} 39... Kxg7 {[%clk 0:00:06.6]} 40. Be3 {[%clk
0:00:08.7]} 40... Re8 {[%clk 0:00:07.3]} 41. Kb2 {[%clk 0:00:08.6]} 41... Rxe3
{[%clk 0:00:07.4]} 0-1